bitfinex-derivatives/quotes_BNBF0:USTF0_20250309
["timestamp","ask_amount","ask_price","bid_price","bid_amount"]
[1741561878921,0.962,553.91,553.71,0.29740094]
[1741561879319,0.962,553.91,553.72,0.29740094]
[1741561879623,0.962,553.91,553.73,0.29740094]
[1741561879824,0.962,553.91,553.74,0.29740094]
[1741561880119,0.962,553.91,553.75,0.29718226]
[1741561880325,0.962,553.91,553.76,0.29718226]
[1741561880520,0.962,553.91,553.77,0.29718226]
[1741561880719,0.962,553.91,553.78,0.29718226]
[1741561880924,0.962,553.91,553.79,0.29718226]
[1741561881124,0.962,553.91,553.26,0.29718226]
[1741561881324,0.962,553.91,553.27,0.29718226]
[1741561881521,0.962,553.91,553.28,0.29718226]
[1741561881923,0.962,553.91,553.29,0.29718226]
[1741561882225,0.962,553.91,553.3,0.29718226]
[1741561882423,0.962,553.91,553.31,0.29718226]
[1741561882627,0.962,553.91,553.32,0.29718226]
[1741561882827,0.962,553.91,553.33,0.29718226]
[1741561883221,0.962,553.91,553.34,0.29718226]
[1741561883427,0.962,553.91,552.89,1.3329422]
[1741561883729,0.962,553.91,552.9,0.29703811]
[1741561884023,0.962,553.91,552.91,0.29703811]
[1741561884327,0.962,553.91,552.9,0.31410635]
[1741561884328,0.962,553.91,552.92,0.29703811]
[1741561884527,0.962,553.91,552.93,0.29703811]
[1741561884725,0.962,553.91,552.94,0.29703811]
[1741561884923,0.962,553.91,552.95,0.29703811]
[1741561885126,0.962,553.91,552.96,0.29703811]
[1741561885326,0.962,553.91,552.9,0.31410635]
[1741561885327,0.962,553.91,552.97,0.29703811]
[1741561885526,0.962,553.91,552.98,0.29703811]
[1741561885721,0.962,553.91,552.89,1.3329422]
[1741561885722,0.962,553.91,552.99,0.29703811]
[1741561885928,0.962,553.91,553.0,0.29703811]
[1741561886128,0.962,553.91,553.01,0.29703811]
[1741561886328,0.962,553.91,552.93,0.31412053]
[1741561886329,0.962,553.91,553.02,0.29703811]
[1741561886530,0.962,553.91,553.03,0.29703811]
[1741561886728,0.962,553.91,553.04,0.29703811]
[1741561886929,0.962,553.91,553.05,0.29703811]
[1741561887124,0.962,553.91,553.06,0.29703811]
[1741561887330,0.962,553.91,553.07,0.29703811]
[1741561887526,0.962,553.91,553.08,0.29703811]
[1741561887727,0.962,553.91,553.09,0.29703811]
[1741561887927,0.962,553.91,553.1,0.29703811]
[1741561888128,0.962,553.91,553.11,0.29703811]
[1741561888326,0.962,553.91,553.12,0.29703811]
[1741561888626,0.962,553.91,553.13,0.65861676]
[1741561889033,0.962,553.91,553.14,0.65861022]
[1741561889233,0.962,553.91,553.15,0.65860368]
[1741561889527,0.962,553.91,553.16,0.65859715]
[1741561889831,0.962,553.91,553.17,0.29703811]
[1741561890032,0.962,553.91,553.18,0.29703811]
[1741561890233,0.962,553.91,553.19,0.65857754]
[1741561890434,0.962,553.91,553.2,0.658571]
[1741561890828,0.262,554.1,553.2,0.36153289]
[1741561891031,0.262,554.1,553.21,0.29738688]
[1741561891228,0.262,554.1,553.01,0.31409218]
[1741561891229,0.262,554.1,553.23,0.36151329]
[1741561891435,0.262,554.1,553.24,0.29738688]
[1741561891634,0.262,554.1,553.26,0.36149369]
[1741561891835,0.262,554.1,553.27,0.29738688]
[1741561892135,0.262,554.1,553.29,0.36147409]
[1741561892335,0.262,554.1,553.3,0.29738688]
[1741561892535,0.262,554.1,553.31,0.29738688]
[1741561892734,0.262,554.1,553.32,0.65884137]
[1741561892937,0.262,554.1,553.33,0.65883484]
[1741561893135,0.262,554.1,553.34,0.29738688]
[1741561893434,0.262,554.1,553.35,0.29738688]
[1741561893636,0.262,554.1,553.36,0.29738688]
[1741561893834,0.262,554.1,553.37,0.29738688]
[1741561894036,1.055,554.09,553.38,0.65880218]
[1741561894432,1.055,554.09,553.39,0.29738688]
[1741561894631,1.055,554.09,553.4,0.29738688]
[1741561894832,1.055,554.09,553.41,0.29738688]
[1741561895038,1.055,554.09,553.42,0.29738688]
[1741561895437,1.055,554.09,553.43,0.65876953]
[1741561895634,1.055,554.09,553.44,0.29738688]
[1741561895941,1.055,554.09,553.45,0.65875647]
[1741561896143,1.055,554.09,553.46,0.29738688]
[1741561896340,1.055,554.09,553.47,0.29741198]
[1741561896541,1.055,554.09,553.48,0.29741198]
[1741561896737,1.055,554.09,553.49,0.29741198]
[1741561897038,1.055,554.09,553.5,0.29741198]
[1741561897235,1.055,554.09,553.51,0.29741198]
[1741561897444,1.055,554.09,553.52,0.29741198]
[1741561897741,1.055,554.09,553.53,0.65872934]
[1741561897942,1.055,554.09,553.54,0.29741198]
[1741561898138,1.055,554.09,553.55,0.65871628]
[1741561898343,1.055,554.09,553.56,0.29741198]
[1741561898539,1.055,554.09,553.57,0.29741198]
[1741561898746,1.055,554.09,553.58,0.29741198]
[1741561898944,1.055,554.09,553.59,0.29741198]
[1741561899146,1.055,554.09,553.6,0.29741198]
[1741561899338,1.055,554.09,553.61,0.29741198]
[1741561899539,1.055,554.09,553.62,0.29741198]
[1741561899740,1.055,554.09,553.63,0.29741198]
[1741561899939,1.055,554.09,553.64,0.29741198]
[1741561900139,1.055,554.09,553.65,0.29741198]
[1741561900342,1.055,554.09,553.66,0.29741198]
[1741561900545,1.055,554.09,553.67,0.65863798]
[1741561900746,1.055,554.09,553.68,0.65863145]
[1741561900946,1.055,554.09,553.69,0.29741198]
[1741561901446,1.055,554.09,553.7,0.29741198]
[1741561901647,1.055,554.09,553.71,0.29741198]
[1741561901849,1.055,554.09,553.72,0.29741198]
[1741561902148,1.055,554.09,553.73,0.29741198]
[1741561902339,1.055,554.09,553.74,0.29741198]
[1741561902540,1.055,554.09,553.75,0.29741198]
[1741561902848,1.055,554.09,553.76,0.29741198]
[1741561903047,1.055,554.09,553.77,0.29741198]
[1741561903347,1.055,554.09,553.78,0.29712799]
[1741561903543,1.055,554.09,553.79,0.29709272]
[1741561903742,1.055,554.09,553.8,0.29709272]
[1741561903947,1.055,554.09,553.81,0.29709272]
[1741561904243,1.055,554.09,553.82,0.29709272]
[1741561904447,1.055,554.09,553.83,0.29709272]
[1741561904741,1.055,554.09,553.84,0.29709272]
[1741561904946,1.055,554.09,553.85,0.29709272]
[1741561905139,1.055,554.09,553.86,0.36110208]
[1741561905342,1.055,554.09,553.86,0.6581948]
[1741561905547,1.055,554.09,553.87,0.29709272]
[1741561905851,1.055,554.09,553.86,0.36110208]
[1741561905852,1.055,554.09,553.88,0.29709272]
[1741561906049,1.055,554.09,553.89,0.29709272]
[1741561906246,1.055,554.09,553.9,0.29709272]
[1741561906550,1.055,554.09,553.91,0.29709272]
[1741561906744,1.055,554.09,553.92,0.29709272]
[1741561906943,1.055,554.09,553.93,0.29709272]
[1741561907142,1.055,554.09,553.94,0.29709272]
[1741561907348,1.055,554.09,553.95,0.29709272]
[1741561907544,1.055,554.09,553.96,0.29709272]
[1741561907750,1.055,554.09,553.97,0.29709272]
[1741561908049,1.055,554.09,553.98,0.29709272]
[1741561908242,1.055,554.09,553.99,0.65811006]
[1741561908448,1.055,554.09,554.0,0.29709272]
[1741561908649,1.055,554.09,554.01,0.65809703]
[1741561908849,1.055,554.09,554.02,0.36099779]
[1741561909051,1.055,554.09,554.03,0.29707334]
[1741561910650,1.055,554.09,554.02,0.36099779]
[1741561910844,1.055,554.09,554.03,0.29692093]
[1741561912147,1.055,554.09,554.04,0.36098476]
[1741561912354,1.055,554.09,554.05,0.29692093]
[1741561912548,1.055,554.09,554.06,0.36097173]
[1741561912747,1.055,554.09,554.07,0.29692093]
[1741561912951,1.055,554.09,554.08,0.3609587]
[1741561913247,1.055,554.09,554.08,0.65787963]
[1741561916148,1.055,554.09,554.08,0.3609587]
[1741561916352,1.055,554.09,554.08,0.65814182]
[1741561917149,0.262,554.35,554.08,0.65814182]
[1741561917447,0.262,554.35,554.09,0.29718312]
[1741561917648,0.262,554.35,553.67,1.3329422]
[1741561917649,0.262,554.35,554.1,0.65812879]
[1741561917848,0.262,554.35,554.11,0.65812228]
[1741561918058,0.262,554.35,554.12,0.36093264]
[1741561919153,0.262,554.35,554.13,0.29726184]
[1741561919853,0.262,554.35,554.12,0.36093264]
[1741561920056,0.262,554.35,554.13,0.29729737]
[1741561921252,0.262,554.35,554.14,0.36091962]
[1741561921452,0.262,554.35,554.15,0.29729737]
[1741561921659,0.262,554.35,554.16,0.36090659]
[1741561921956,0.262,554.35,554.17,0.29729737]
[1741561922157,0.262,554.35,554.18,0.36089357]
[1741561922358,0.262,554.35,554.19,0.29729737]
[1741561922759,0.262,554.35,554.2,0.36088054]
[1741561922959,0.262,554.35,554.21,0.29729737]
[1741561924259,0.262,554.35,554.2,0.36088054]
[1741561924462,0.262,554.35,554.21,0.29686191]
[1741561925064,0.262,554.35,554.2,0.36088054]
[1741561926163,0.262,554.35,554.21,0.29692769]
[1741561926760,0.262,554.35,554.2,0.36088054]
[1741561927360,0.262,554.35,554.21,0.29687318]
[1741561927757,0.262,554.35,554.22,0.6577407]
[1741561927965,0.262,554.35,554.23,0.65773419]
[1741561928169,0.262,554.35,554.24,0.29687318]
[1741561928465,0.262,554.35,554.25,0.36084799]
[1741561928666,0.262,554.35,554.26,0.29677464]
[1741561931269,0.262,554.35,554.27,0.36083497]
[1741561931666,0.262,554.35,554.28,0.29669412]
[1741561931868,0.262,554.35,554.29,0.36082195]
[1741561932270,0.262,554.35,554.3,0.29669412]
[1741561932672,0.262,554.35,554.31,0.36080893]
[1741561932970,0.262,554.35,554.32,0.29669412]
[1741561933570,0.262,554.35,554.33,0.36079591]
[1741561933767,0.262,554.35,554.34,0.29669412]
[1741561934069,0.262,554.35,554.34,0.29668694]
[1741561934672,0.262,554.35,554.34,0.65747634]
[1741561935671,0.262,554.35,554.34,0.3607894]
[1741561935871,0.262,554.35,554.34,0.65761272]
[1741561937166,1.06,554.42,554.34,0.65761272]
[1741561937372,1.06,554.42,554.35,0.29682332]
[1741561937571,1.06,554.42,554.36,0.65759971]
[1741561937767,1.06,554.42,554.37,0.6575932]
[1741561937973,1.06,554.42,554.38,0.65758669]
[1741561938174,0.32716313,554.42,554.39,0.65758018]
[1741561938375,0.32716313,554.42,554.4,0.36075036]
[1741561938575,0.32716313,554.42,554.41,0.29682332]
[1741561938772,0.32716313,554.42,554.41,0.65756717]
[1741561942379,0.262,554.74,554.41,0.65756717]
[1741561942677,0.262,554.74,554.42,0.65756066]
[1741561942978,0.262,554.74,554.27,1.3329422]
[1741561942979,0.262,554.74,554.43,0.65755416]
[1741561943275,0.262,554.74,554.44,0.65754765]
[1741561943477,0.262,554.74,554.45,0.29682332]
[1741561943973,0.262,554.74,554.44,0.36072433]
[1741561950278,1.41604283,554.73,554.44,0.36072433]
[1741561950985,1.41604283,554.72,554.44,0.36072433]
[1741561951483,1.41604283,554.71,554.44,0.36072433]
[1741561951878,0.262,554.74,554.44,0.36072433]
[1741561952281,0.262,554.74,553.98,1.3329422]
[1741561952481,1.41604282,554.73,553.99,0.65826036]
[1741561952681,1.41604282,554.73,554.0,0.29724302]
[1741561952877,1.41604282,554.73,554.01,0.36100431]
[1741561953179,1.41604282,554.72,554.02,0.29724302]
[1741561953785,1.41604282,554.72,554.03,0.36099128]
[1741561954085,1.41604282,554.71,554.03,0.36099128]
[1741561954386,1.41604282,554.71,554.04,0.29723324]
[1741561954779,0.262,554.74,554.04,0.29723324]
[1741561954780,1.41604282,554.7,554.05,0.36097825]
[1741561955082,1.41604282,554.7,554.06,0.29723324]
[1741561955480,1.41604282,554.69,554.06,0.29723324]
[1741561955884,1.41604282,554.68,554.06,0.29723324]
[1741561956087,1.41604282,554.68,554.07,0.29692331]
[1741561956389,1.41604282,554.68,554.08,0.29692331]
[1741561956687,0.262,554.74,554.09,0.29692331]
[1741561956882,0.262,554.74,554.06,0.29692331]
[1741561957083,0.262,554.74,554.07,0.29692331]
[1741561957288,0.262,554.74,554.06,0.29692331]
[1741561957582,0.262,554.74,554.07,0.29692331]
[1741561957788,0.262,554.74,554.07,0.36096522]
[1741561957989,0.262,554.74,554.08,0.29692331]
[1741561958681,0.262,554.74,554.07,0.36096522]
[1741561958682,0.262,554.74,554.09,0.29692331]
[1741561958887,0.262,554.74,554.1,0.29692331]
[1741561959088,0.262,554.74,554.11,0.29692331]
[1741561959288,0.262,554.74,554.12,0.29692331]
[1741561959586,0.262,554.74,554.07,0.36096522]
[1741561959887,0.262,554.74,554.08,0.29628966]
[1741561960483,0.262,554.74,554.18,1.3329422]
[1741561960688,0.262,554.74,554.19,0.29628966]
[1741561961385,1.4156364,554.99,554.19,0.29628966]
[1741561961687,1.4156364,554.98,554.19,0.29628966]
[1741561962288,1.4156364,554.97,554.2,0.29628966]
[1741561962587,1.4156364,554.97,554.21,0.29628966]
[1741561962789,1.4156364,554.97,554.22,0.36086752]
[1741561963088,1.4156364,554.96,554.23,0.29628966]
[1741561963286,1.4156364,554.96,554.24,0.3608545]
[1741561963487,0.31375095,555.14,554.25,0.29655969]
[1741561963683,2.89270449,555.13,554.25,0.29655969]
[1741561963888,7.52100104,555.12,554.26,0.36084148]
[1741561964083,1.41577801,555.0,554.27,0.29655969]
[1741561964284,1.41577801,555.0,554.28,0.29657661]
[1741561964588,1.67777801,554.99,554.29,0.29657661]
[1741561964791,2.89296992,554.98,554.27,0.29657661]
[1741561964987,2.89298834,554.97,554.28,0.29657661]
[1741561965188,2.89298834,554.96,554.27,0.29657661]
[1741561965484,4.30883105,554.95,554.28,0.29657661]
[1741561965686,1.41577801,554.95,554.27,0.29657661]
[1741561965884,1.41577801,554.95,554.28,0.29657661]
[1741561966090,1.41577801,554.94,554.27,0.29657661]
[1741561966799,3.68133619,554.93,554.27,0.29657661]
[1741561966987,2.89335315,554.92,554.27,0.29657661]
[1741561967184,3.68133619,554.93,554.27,0.29657661]
[1741561967185,2.89335315,554.91,554.27,0.29657661]
[1741561967386,6.57468934,554.9,554.27,0.29657661]
[1741561967586,2.89335315,554.89,554.27,0.29657661]
[1741561967795,2.89335315,554.88,554.27,0.29657661]
[1741561967997,3.68133619,554.88,554.27,0.29657661]
[1741561968396,0.262,554.99,553.72,1.3329422]
[1741561968397,1.41577801,554.87,554.28,0.65762362]
[1741561968695,1.41577801,554.87,554.29,0.65761711]
[1741561968897,1.41577801,554.86,554.3,0.6576106]
[1741561969097,1.41577801,554.86,554.31,0.29679516]
[1741561969700,1.41577801,554.85,554.31,0.29679516]
[1741561970093,1.41577801,554.84,554.31,0.29679516]
[1741561970497,1.41577801,554.84,554.32,0.29689212]
[1741561970692,1.41577801,554.84,554.31,0.29689212]
[1741561970898,1.41577801,554.83,554.32,0.29689212]
[1741561971100,1.41577801,554.83,554.3,0.36081544]
[1741561971300,2.89348739,554.82,554.3,0.36081544]
[1741561971501,2.89348739,554.81,554.3,0.36081544]
[1741561971702,2.89348739,554.8,554.3,0.36081544]
[1741561972003,2.89348739,554.79,554.3,0.36081544]
[1741561972200,2.89375993,554.78,554.3,0.36081544]
[1741561972400,2.89375993,554.77,554.3,0.36081544]
[1741561972601,3.68133619,554.79,554.3,0.36081544]
[1741561972801,6.57508521,554.78,554.3,0.36081544]
[1741561972999,5.77870538,554.77,554.3,0.36081544]
[1741561973304,2.89374902,554.76,554.3,0.36081544]
[1741561973506,2.89374902,554.75,554.3,0.36081544]
[1741561973698,2.89374902,554.74,554.3,0.36081544]
[1741561973901,2.89374902,554.73,554.3,0.36081544]
[1741561974105,6.57508521,554.72,554.3,0.36081544]
[1741561974403,2.89374902,554.71,554.3,0.36081544]
[1741561974600,2.89402799,554.7,554.3,0.36081544]
[1741561974805,1.41577801,554.69,554.3,0.36081544]
[1741561975209,1.41577801,554.68,554.3,0.36081544]
[1741561976010,1.41577801,554.67,554.3,0.36081544]
[1741561976706,2.26478215,554.77,554.3,0.36081544]
[1741561976908,2.89310792,554.76,554.3,0.36081544]
[1741561977112,1.41497794,554.76,554.3,0.36081544]
[1741561977307,1.41497794,554.76,554.31,0.29701768]
[1741561977708,1.228,554.75,554.31,0.29701768]
[1741561977905,1.228,554.75,554.3,0.36081544]
[1741561977906,1.228,554.75,554.32,0.29692084]
[1741561978211,1.228,554.75,554.33,0.29692084]
[1741561978410,1.228,554.75,554.31,0.29692084]
[1741561978606,1.228,554.75,554.32,0.29692084]
[1741561978807,1.41469801,554.74,554.31,0.29692084]
[1741561979013,1.41469801,554.74,554.32,0.29692084]
[1741561979213,1.41469801,554.74,554.3,0.36081544]
[1741561979214,1.41469801,554.74,554.33,0.29692084]
[1741561979416,1.41469801,554.74,554.34,0.29692084]
[1741561979714,1.41469801,554.73,554.3,0.36081544]
[1741561979922,1.41469801,554.73,554.31,0.29711037]
[1741561980519,1.228,554.75,554.31,0.29711037]
[1741561980711,1.228,554.75,554.3,0.36081544]
[1741561982627,1.4145358,554.74,554.3,0.36081544]
[1741561983022,1.4145358,554.73,554.3,0.36081544]
[1741561983422,1.228,554.75,554.3,0.36081544]
[1741561984320,1.41463346,554.74,554.3,0.36081544]
[1741561984623,1.228,554.75,554.3,0.36081544]
[1741561984624,1.41463346,554.73,554.3,0.36081544]
[1741561985024,2.89297838,554.72,554.3,0.36081544]
[1741561985224,2.89297838,554.71,554.3,0.36081544]
[1741561985424,2.89287809,554.7,554.3,0.36081544]
[1741561985723,4.30751155,554.69,554.3,0.36081544]
[1741561985925,2.89287809,554.68,553.6,1.3329422]
[1741561986220,6.57094966,554.67,553.62,0.36125862]
[1741561986524,2.89287809,554.66,553.63,0.29665724]
[1741561986723,3.2177853,554.66,553.63,0.29665724]
[1741561986926,2.89263959,554.65,553.63,0.29665724]
[1741561987220,1.41463346,554.64,553.63,0.29665724]
[1741561987818,1.228,554.75,553.63,0.29665724]
[1741561989226,1.228,554.75,553.65,0.36123904]
[1741561989422,1.228,554.75,553.66,0.29665724]
[1741561989624,1.41371084,554.74,553.66,0.29665724]
[1741561990023,1.41371084,554.73,553.65,0.36123904]
[1741561990219,1.41371084,554.73,553.66,0.29655406]
[1741561990422,1.41371084,554.72,553.68,0.36121947]
[1741561990619,1.41371084,554.72,553.69,0.29655406]
[1741561990818,2.89229036,554.71,553.69,0.29655406]
[1741561991022,7.52085653,554.7,553.69,0.29655406]
[1741561991225,7.52082785,554.69,553.69,0.29655406]
[1741561991416,7.52082785,554.68,553.69,0.29655406]
[1741561991625,11.19647603,554.67,553.69,0.29655406]
[1741561991825,7.52082785,554.66,553.68,0.36121947]
[1741561992025,11.19647603,554.65,553.69,0.29681274]
[1741561992323,2.89229036,554.64,553.69,0.29681274]
[1741561992529,2.89229036,554.63,553.69,0.29681274]
[1741561992830,6.56793854,554.62,553.69,0.29681274]
[1741561993026,2.89229036,554.61,553.69,0.29681274]
[1741561993221,2.89229036,554.6,553.69,0.29681274]
[1741561993427,3.67564818,554.62,553.69,0.29681274]
[1741561993428,2.89229036,554.59,553.69,0.29681274]
[1741561993730,6.56793854,554.58,553.69,0.29681274]
[1741561993928,6.56793854,554.57,553.69,0.29681274]
[1741561994123,2.89253985,554.56,553.69,0.29681274]
[1741561994323,1.8036792,554.56,553.69,0.29681274]
[1741561994527,3.67564818,554.57,553.69,0.29681274]
[1741561994725,1.41371084,554.56,553.69,0.29681274]
[1741561995127,1.41371084,554.56,553.68,0.36121947]
[1741561995327,1.41371084,554.56,553.69,0.2969464]
[1741561995530,0.31393209,554.71,553.69,0.2969464]
[1741561995531,2.50234403,554.55,553.69,0.2969464]
[1741561995730,1.08863319,554.54,553.69,0.2969464]
[1741561996124,1.41371084,554.53,553.69,0.2969464]
[1741561996729,1.41371084,554.52,553.69,0.2969464]
[1741561996931,4.30583227,554.52,553.69,0.2969464]
[1741561997230,1.41371084,554.51,553.68,0.36121947]
[1741561997430,1.41371084,554.51,553.69,0.29694145]
[1741561997630,1.41371084,554.5,553.69,0.29694145]
[1741561997931,1.41371084,554.49,553.69,0.29694145]
[1741561999232,1.41371084,554.49,553.68,0.36121947]
[1741561999233,1.41371084,554.48,553.68,0.36121947]
[1741561999528,1.41371084,554.48,553.69,0.29700886]
[1741561999727,0.262,554.55,553.69,0.29700886]
[1741561999935,1.41255881,554.54,553.69,0.29700886]
[1741562000431,1.41255881,554.53,553.69,0.29700886]
[1741562001027,1.41255881,554.52,553.68,0.36121947]
[1741562001340,1.41255881,554.52,553.69,0.29700039]
[1741562001534,1.41255881,554.51,553.69,0.29700039]
[1741562002129,1.41255881,554.51,553.71,0.3611999]
[1741562002327,1.41255881,554.5,553.72,0.29700039]
[1741562003135,1.41255881,554.49,553.73,0.36118686]
[1741562003326,1.41255881,554.49,553.74,0.29700039]
[1741562003725,0.262,554.55,553.74,0.29700039]
[1741562004133,1.08862049,554.54,553.74,0.29700039]
[1741562004434,2.89224203,554.53,553.75,0.36117381]
[1741562004629,1.41320122,554.54,553.76,0.29700039]
[1741562004933,4.30549455,554.53,553.76,0.29700039]
[1741562005130,2.89229333,554.52,553.76,0.29700039]
[1741562005334,1.08851363,554.51,553.77,0.36116077]
[1741562005533,4.76177976,554.51,553.78,0.29700039]
[1741562005736,2.89229333,554.5,553.78,0.29700039]
[1741562005932,6.56555946,554.49,553.78,0.29700039]
[1741562006131,2.89229333,554.48,553.78,0.29700039]
[1741562006339,2.89229333,554.47,553.78,0.29700039]
[1741562006536,2.89181626,554.46,553.78,0.29700039]
[1741562006732,3.67326613,554.47,553.78,0.29700039]
[1741562006938,0.31400574,554.49,553.77,0.36116077]
[1741562006939,1.41320122,554.46,553.77,0.36116077]
[1741562007334,0.262,554.55,553.77,0.36116077]
[1741562007633,0.262,554.55,553.78,0.29683634]
[1741562007839,0.262,554.55,553.79,0.36114772]
[1741562008042,1.41201043,554.54,553.79,0.36114772]
[1741562008939,2.23101043,554.53,553.79,0.36114772]
[1741562009338,1.41201043,554.52,553.79,0.36114772]
[1741562009941,1.41201043,554.51,553.79,0.36114772]
[1741562010445,0.819,554.53,553.79,0.36114772]
[1741562010446,1.41201043,554.5,553.79,0.36114772]
[1741562010941,1.41201043,554.49,553.79,0.36114772]
[1741562011546,2.89129346,554.52,553.79,0.36114772]
[1741562011547,1.41201043,554.48,553.79,0.36114772]
[1741562011738,1.41201043,554.48,553.8,0.29702067]
[1741562011942,1.41201043,554.48,553.81,0.36113468]
[1741562012145,1.41201043,554.47,553.82,0.29702067]
[1741562012346,1.41201043,554.47,553.83,0.36112164]
[1741562012547,1.41201043,554.46,553.84,0.29702067]
[1741562013448,2.25848345,554.52,553.85,0.3611086]
[1741562013646,2.25848345,554.52,553.86,0.29702067]
[1741562013846,0.819,554.53,553.87,0.36109556]
[1741562014042,0.819,554.53,553.88,0.29702067]
[1741562014543,1.41085812,554.52,553.88,0.29702067]
[1741562014949,4.30159214,554.52,553.88,0.29702067]
[1741562015145,3.20471143,554.51,553.87,0.36109556]
[1741562015452,2.89073402,554.5,553.87,0.36109556]
[1741562015747,6.56007559,554.49,553.87,0.36109556]
[1741562015947,2.89073402,554.48,553.87,0.36109556]
[1741562016149,2.89066613,554.47,553.87,0.36109556]
[1741562016350,2.89066613,554.46,553.87,0.36109556]
[1741562016553,2.89066613,554.45,553.87,0.36109556]
[1741562016754,1.41085812,554.44,553.87,0.36109556]
[1741562017252,1.41085812,554.43,553.87,0.36109556]
[1741562017654,1.41085812,554.43,553.88,0.29682746]
[1741562018156,0.819,554.53,553.88,0.29682746]
[1741562018451,1.41073672,554.52,553.88,0.29682746]
[1741562019054,0.31397174,554.51,553.87,0.36109556]
[1741562019257,2.8115807,554.51,553.87,0.36109556]
[1741562019555,1.72470846,554.51,553.87,0.36109556]
[1741562020154,1.41073672,554.5,553.87,0.36109556]
[1741562020556,1.41073672,554.49,553.87,0.36109556]
[1741562021157,1.41073672,554.48,553.87,0.36109556]
[1741562021751,0.819,554.53,553.88,0.29655679]
[1741562024456,0.819,554.53,553.89,0.36108252]
[1741562024656,0.819,554.53,553.9,0.29655679]
[1741562024860,0.819,554.53,553.91,0.36106948]
[1741562025158,0.819,554.53,553.92,0.29655679]
[1741562025361,0.819,554.53,553.93,0.36105645]
[1741562025657,0.819,554.53,553.94,0.29655679]
[1741562028963,0.262,554.52,553.94,0.29655679]
[1741562030261,0.262,554.52,553.93,0.36105645]
[1741562030564,0.262,554.52,553.94,0.29679917]
[1741562031465,1.41665806,554.51,553.94,0.29679917]
[1741562031965,0.262,554.52,553.94,0.29679917]
[1741562032466,0.262,554.52,553.93,0.36105645]
[1741562032666,0.262,554.52,553.94,0.29689203]
[1741562032863,0.262,554.52,553.95,0.36104341]
[1741562033069,0.262,554.52,553.96,0.29689203]
[1741562033271,0.262,554.52,553.97,0.36103038]
[1741562033568,0.262,554.52,553.98,0.29689203]
[1741562033762,0.262,554.52,553.99,0.36101734]
[1741562033969,0.262,554.52,554.0,0.29689203]
[1741562034169,0.262,554.52,554.01,0.36100431]
[1741562034468,0.262,554.52,554.02,0.29657884]
[1741562034669,0.262,554.52,554.03,0.36099128]
[1741562034870,0.262,554.52,554.04,0.29657884]
[1741562035061,0.262,554.52,554.05,0.36097825]
[1741562035368,0.262,554.52,554.06,0.29657884]
[1741562035563,0.262,554.52,554.07,0.36096522]
[1741562035769,0.262,554.52,554.08,0.29657884]
[1741562035970,0.262,554.52,554.09,0.36095219]
[1741562036268,0.262,554.52,554.1,0.29657884]
[1741562036470,0.262,554.52,554.11,0.36093916]
[1741562036670,0.262,554.52,554.12,0.29657884]
[1741562037169,0.262,554.52,554.13,0.36092613]
[1741562037370,0.262,554.52,554.14,0.29657884]
[1741562037568,0.262,554.52,554.15,0.36091311]
[1741562037868,0.262,554.52,554.16,0.29657884]
[1741562038069,0.97,554.51,554.17,0.36090008]
[1741562038469,0.97,554.51,554.18,0.29625952]
[1741562039680,0.97,554.51,554.17,0.36090008]
[1741562039979,0.97,554.51,554.18,0.29631906]
[1741562041283,0.97,554.51,554.17,0.36090008]
[1741562041575,0.97,554.51,554.18,0.29605286]
[1741562043173,1.232,554.51,554.18,0.29605286]
[1741562043976,1.232,554.51,554.19,0.36088706]
[1741562044876,1.232,554.51,554.2,0.29605286]
[1741562045075,1.232,554.51,554.21,0.29605286]
[1741562045280,1.232,554.51,554.22,0.29605286]
[1741562045781,1.232,554.51,554.23,0.29605286]
[1741562045981,1.232,554.51,554.23,0.36086101]
[1741562046275,1.232,554.51,554.24,0.29605286]
[1741562046681,1.232,554.51,554.25,0.36084799]
[1741562046981,1.232,554.51,554.26,0.29605286]
[1741562048375,1.232,554.51,554.27,0.36083497]
[1741562048576,1.232,554.51,554.28,0.29605286]
[1741562048777,1.232,554.51,554.29,0.36082195]
[1741562048982,1.232,554.51,554.3,0.29605286]
[1741562050583,1.232,554.51,554.31,0.36080893]
[1741562050783,1.232,554.51,554.32,0.29605286]